[Event "2nd Cambridge Open 2024"]
[Site "Cambridge"]
[Date "2024.02.23"]
[Round "7.25"]
[White "Ismail, Mohammed Aayan"]
[Black "Underwood, Jon"]
[Result "0-1"]
[ECO "A88"]
[WhiteElo "2115"]
[BlackElo "1993"]
[Annotator "RC"]
[PlyCount "158"]
[EventDate "2024.02.18"]
[EventType "swiss"]
[EventCountry "ENG"]
[SourceTitle "playchess.com"]
[Source "ChessBase"]
[SourceQuality "1"]
[TimeControl "5400+30"]

1. c4 {[%emt 0:01:39]} f5 {[%emt 0:00:08]} 2. Nf3 {[%emt 0:00:25]} Nf6 {[%emt 0:00:08]} 3. g3 {[%emt 0:00:36]} g6 {[%emt 0:00:07]} 4. Bg2 {[%emt 0:00:06]} Bg7 {[%emt 0:00:07]} 5. O-O {[%emt 0:00:05]} d6 {[%emt 0:00:10]} 6. d4 {[%emt 0:00:15]} O-O {[%emt 0:00:07]} 7. Nc3 {[%emt 0:00:22]} c6 {[%emt 0:00:07]} 8. d5 {[%emt 0:08:26]} e5 {[%emt 0:00:07]} 9. dxe6 {[%emt 0:02:15]} Bxe6 {[%emt 0:00:13]} 10. Qd3 {[%emt 0:04:23]} Na6 {[%emt 0:00:55]} 11. Ng5 {[%emt 0:01:42]} Qe7 {[%emt 0:11:37]} 12. Nxe6 {[%emt 0:04:39]} Qxe6 {[%emt 0:00:08]} 13. Bf4 {[%emt 0:15:50]} Rad8 {[%emt 0:08:30]} 14. Rad1 {[%emt 0:10:22]} Nc5 {[%emt 0:00:16]} 15. Qc2 {[%emt 0:02:03]} Rfe8 {[%emt 0:07:06]} 16. b3 {[%emt 0:01:31]} Nce4 {[%emt 0:04:53]} 17. Nxe4 {[%emt 0:00:49]} Nxe4 {[%emt 0:00:07]} 18. Be3 {[%emt 0:07:19]} a6 {[%emt 0:02:48]} 19. Bd4 {[%emt 0:02:43]} Rd7 {[%emt 0:12:34]} 20. Bxg7 {[%emt 0:00:40]} Kxg7 {[%emt 0:00:21]} 21. Rd4 {[%emt 0:00:52]} Nf6 {[%emt 0:00:42]} 22. Bf3 {[%emt 0:01:58]} Red8 {[%emt 0:03:44]} 23. Rfd1 {[%emt 0:01:11]} Qe5 {[%emt 0:00:31]} 24. h4 {[%emt 0:04:49]} h6 {[%emt 0:02:56]} 25. Qd2 {[%emt 0:06:17]} Ne4 {[%emt 0:05:43]} 26. Qe3 {[%emt 0:00:21]} d5 {[%emt 0:05:19]} 27. h5 {[%emt 0:05:04]} c5 {[%emt 0:02:33]} 28. Rxd5 {[%emt 0:00:46]} Rxd5 {[%emt 0:00:10]} 29. cxd5 {[%emt 0:00:46]} Rxd5 {[%emt 0:00:11]} 30. Rxd5 {[%emt 0:00:31]} Qxd5 {[%emt 0:00:13]} 31. hxg6 {[%emt 0:02:14]} Qd4 {[%emt 0:04:26]} 32. Qxd4+ {[%emt 0:02:37]} cxd4 {[%emt 0:00:04]} 33. Bg2 {[%emt 0:01:16]} Kxg6 {[%emt 0:01:19]} 34. g4 {[%emt 0:07:10]} b6 {[%emt 0:00:25]} 35. gxf5+ {[%emt 0:01:56]} Kxf5 {[%emt 0:00:02]} 36. Bh3+ {[%emt 0:00:22]} Kf4 {[%emt 0:29:43]} 37. Bc8 {[%emt 0:01:04]} a5 {[%emt 0:00:00]} 38. Ba6 {[%emt 0:00:42]} Nc3 {[%emt 0:00:00]} 39. a4 {[%emt 0:00:27]} Ne4 {[%emt 0:00:00]} 40. Bb7 {[%emt 0:01:42]} Nc5 {[%emt 0:00:00]} 41. Bd5 {[%emt 0:00:03]} d3 {[%emt 0:00:00]} 42. exd3 {[%emt 0:00:04]} Nxd3 {[%emt 0:00:00]} 43. Kf1 {[%emt 0:00:25]} h5 {[%emt 0:00:00]} 44. Ke2 {[%emt 0:02:02]} Nc5 {[%emt 0:00:00]} 45. Bf7 {[%emt 0:00:46]} h4 {[%emt 0:00:00]} 46. Kf1 {[%emt 0:01:03]} h3 {[%emt 0:00:00]} 47. Bd5 {[%emt 0:00:40]} Ne4 {[%emt 0:00:00]} 48. Kg1 {[%emt 0:00:27]} h2+ {[%emt 0:00:00]} 49. Kg2 {[%emt 0:00:18]} h1=Q+ {[%emt 0:00:00]} 50. Kxh1 {[%emt 0:00:03]} Nxf2+ {[%emt 0:00:00]} 51. Kg1 {[%emt 0:00:18]} Ke3 {[%emt 0:00:00]} 52. Kf1 {[%emt 0:00:07]} Nd3 {[%emt 0:00:00]} 53. Bg8 {[%emt 0:00:42]} Kd2 {[%emt 0:00:00]} 54. Bf7 {[%emt 0:00:10]} Nc1 {[%emt 0:00:00]} 55. Kf2 {[%emt 0:00:07]} Kc3 {[%emt 0:00:00]} 56. Ke3 {[%emt 0:00:11]} Nxb3 {[%emt 0:00:00]} 57. Be8 {[%emt 0:00:16]} Nc5 {[%emt 0:00:00]} 58. Bc6 {[%emt 0:00:12]} Kb4 {[%emt 0:00:00]} 59. Kd2 {[%emt 0:00:18]} Nxa4 {[%emt 0:00:00]} 60. Kc2 {[%emt 0:00:04]} Nc3 {[%emt 0:00:00]} 61. Kb2 {[%emt 0:00:09]} a4 {[%emt 0:00:00]} 62. Be8 {[%emt 0:00:10]} a3+ {[%emt 0:00:00]} 63. Ka1 {[%emt 0:00:09]} b5 {[%emt 0:00:00]} 64. Bd7 {[%emt 0:00:12]} Kc5 {[%emt 0:00:00]} 65. Be8 {[%emt 0:01:01]} b4 {[%emt 0:00:00]} 66. Bf7 {[%emt 0:00:10]} Nd5 {[%emt 0:00:19]} 67. Ka2 {[%emt 0:00:12]} Ne3 {[%emt 0:00:58]} 68. Kb3 {[%emt 0:00:27]} Nf5 {[%emt 0:00:11]} 69. Ka2 {[%emt 0:00:31]} Ne3 {[%emt 0:01:13]} 70. Kb3 {[%emt 0:00:14]} Nf1 {[%emt 0:00:02]} 71. Ka2 {[%emt 0:00:20]} Nd2 {[%emt 0:00:16]} 72. Be6 {[%emt 0:00:46]} Kd4 {[%emt 0:00:10]} 73. Bf7 {[%emt 0:00:25]} Kc3 {[%emt 0:00:23]} 74. Be8 {[%emt 0:01:18]} Nc4 {[%emt 0:00:55]} 75. Ba4 {[%emt 0:00:11]} Ne5 {[%emt 0:00:17]} 76. Bb3 {[%emt 0:00:13]} Nd3 {[%emt 0:00:07]} 77. Bf7 {[%emt 0:00:12]} Nc1+ {[%emt 0:00:55]} 78. Kb1 {[%emt 0:00:17]} b3 {[%emt 0:00:18]} 79. Ka1 {[%emt 0:00:16]} b2+ {[%emt 0:00:24]} 0-1

[Event "2nd Cambridge Open 2024"]
[Site "Cambridge"]
[Date "2024.02.23"]
[Round "7.26"]
[White "Waller, Dan"]
[Black "Hagesather, Nina"]
[Result "1-0"]
[ECO "B12"]
[WhiteElo "2126"]
[BlackElo "1973"]
[Annotator "RC"]
[PlyCount "71"]
[EventDate "2024.02.18"]
[EventType "swiss"]
[EventCountry "ENG"]
[SourceTitle "playchess.com"]
[Source "ChessBase"]
[SourceQuality "1"]
[TimeControl "5400+30"]

1. e4 {[%emt 0:00:02]} c6 {[%emt 0:01:32]} 2. d4 {[%emt 0:00:11]} d5 {[%emt 0:00:11]} 3. e5 {[%emt 0:00:05]} c5 {[%emt 0:00:06]} 4. dxc5 {[%emt 0:00:49]} e6 {[%emt 0:00:13]} 5. a3 {[%emt 0:00:48]} Bxc5 {[%emt 0:00:09]} 6. b4 {[%emt 0:00:08]} Be7 {[%emt 0:00:07]} 7. Nf3 {[%emt 0:00:45]} a5 {[%emt 0:04:30]} 8. b5 {[%emt 0:01:27]} Nd7 {[%emt 0:02:23]} 9. c4 {[%emt 0:05:20]} dxc4 {[%emt 0:17:26]} 10. Nbd2 {[%emt 0:00:44]} Nb6 {[%emt 0:00:57]} 11. Bxc4 {[%emt 0:06:40]} Nxc4 {[%emt 0:06:32]} 12. Nxc4 {[%emt 0:00:07]} Qxd1+ {[%emt 0:00:44]} 13. Kxd1 {[%emt 0:00:05]} Bc5 {[%emt 0:02:02]} 14. Ke2 {[%emt 0:19:22]} Ne7 {[%emt 0:04:48]} 15. Be3 {[%emt 0:04:24]} Bxe3 {[%emt 0:02:57]} 16. Nd6+ {[%emt 0:00:27]} Kf8 {[%emt 0:04:05]} 17. fxe3 {[%emt 0:01:12]} Nd5 {[%emt 0:05:21]} 18. Rac1 {[%emt 0:02:42]} Bd7 {[%emt 0:05:42]} 19. e4 {[%emt 0:11:00]} Nf4+ {[%emt 0:04:08]} 20. Kd2 {[%emt 0:00:11]} Ke7 {[%emt 0:01:22]} 21. Rc7 {[%emt 0:06:53]} Ng6 {[%emt 0:05:43]} 22. Nxb7 {[%emt 0:02:58]} Rhc8 {[%emt 0:07:16]} 23. Rhc1 {[%emt 0:00:29]} Rxc7 {[%emt 0:01:38]} 24. Rxc7 {[%emt 0:00:05]} f6 {[%emt 0:02:05]} 25. b6 {[%emt 0:06:39]} Rb8 {[%emt 0:03:46]} 26. Kc3 {[%emt 0:05:45]} Ke8 {[%emt 0:02:27]} 27. Kc4 {[%emt 0:02:14]} Ne7 {[%emt 0:00:48]} 28. Kc5 {[%emt 0:01:28]} a4 {[%emt 0:02:11]} 29. exf6 {[%emt 0:03:01]} gxf6 {[%emt 0:00:05]} 30. Nd4 {[%emt 0:01:44]} Nc8 {[%emt 0:02:09]} 31. Nb5 {[%emt 0:02:25]} Ra8 {[%emt 0:00:55]} 32. N5d6+ {[%emt 0:05:14]} Nxd6 {[%emt 0:02:06]} 33. Nxd6+ {[%emt 0:00:10]} Ke7 {[%emt 0:01:04]} 34. Ra7 {[%emt 0:02:23]} Rb8 {[%emt 0:00:38]} 35. b7 {[%emt 0:00:14]} Kd8 {[%emt 0:00:21]} 36. Kb6 {[%emt 0:00:09]} 1-0

[Event "2nd Cambridge Open 2024"]
[Site "Cambridge"]
[Date "2024.02.23"]
[Round "7.27"]
[White "Southcott-Moyers, Indy"]
[Black "Redman, David J"]
[Result "1-0"]
[ECO "A43"]
[WhiteElo "2123"]
[BlackElo "1971"]
[Annotator "RC"]
[PlyCount "87"]
[EventDate "2024.02.18"]
[EventType "swiss"]
[EventCountry "ENG"]
[SourceTitle "playchess.com"]
[Source "ChessBase"]
[SourceQuality "1"]
[TimeControl "5400+30"]

1. d4 {[%emt 0:00:03]} c5 {[%emt 0:00:08]} 2. d5 {[%emt 0:01:04]} Nf6 {[%emt 0:00:12]} 3. Nc3 {[%emt 0:03:20]} d6 {[%emt 0:01:46]} 4. e4 {[%emt 0:00:39]} g6 {[%emt 0:00:39]} 5. Nf3 {[%emt 0:05:44]} Bg7 {[%emt 0:00:34]} 6. Bb5+ {[%emt 0:00:52]} Bd7 {[%emt 0:15:56]} 7. a4 {[%emt 0:01:42]} Na6 {[%emt 0:09:05]} 8. O-O {[%emt 0:03:33]} O-O {[%emt 0:00:30]} 9. Nd2 {[%emt 0:04:56]} Nc7 {[%emt 0:03:54]} 10. Be2 {[%emt 0:02:20]} Re8 {[%emt 0:18:47]} 11. Nc4 {[%emt 0:05:14]} b5 {[%emt 0:10:12]} 12. axb5 {[%emt 0:05:06]} Nxb5 {[%emt 0:00:47]} 13. Nxb5 {[%emt 0:05:16]} Bxb5 {[%emt 0:00:31]} 14. Na5 {[%emt 0:05:14]} Bxe2 {[%emt 0:04:23]} 15. Qxe2 {[%emt 0:00:09]} e6 {[%emt 0:00:02]} 16. Qf3 {[%emt 0:08:03]} Qb6 {[%emt 0:04:31]} 17. Nc4 {[%emt 0:02:06]} Qb8 {[%emt 0:05:48]} 18. Bf4 {[%emt 0:01:34]} e5 {[%emt 0:05:43]} 19. Bd2 {[%emt 0:02:33]} Nd7 {[%emt 0:01:33]} 20. b3 {[%emt 0:02:51]} f5 {[%emt 0:08:12]} 21. Qh3 {[%emt 0:02:04]} Nb6 {[%emt 0:02:17]} 22. exf5 {[%emt 0:06:37]} Nxc4 {[%emt 0:01:41]} 23. bxc4 {[%emt 0:00:01]} Qc8 {[%emt 0:00:01]} 24. fxg6 {[%emt 0:00:50]} Qxh3 {[%emt 0:00:01]} 25. gxh3 {[%emt 0:00:11]} hxg6 {[%emt 0:00:02]} 26. Ra6 {[%emt 0:02:16]} Bf8 {[%emt 0:00:07]} 27. Rb1 {[%emt 0:02:13]} Reb8 {[%emt 0:03:06]} 28. Rb5 {[%emt 0:01:24]} Rxb5 {[%emt 0:00:58]} 29. cxb5 {[%emt 0:00:02]} Rb8 {[%emt 0:00:01]} 30. c4 {[%emt 0:00:35]} Rb7 {[%emt 0:00:01]} 31. Rc6 {[%emt 0:01:35]} Be7 {[%emt 0:00:31]} 32. Ba5 {[%emt 0:01:56]} Rd7 {[%emt 0:00:14]} 33. Rc7 {[%emt 0:02:31]} Rxc7 {[%emt 0:01:16]} 34. Bxc7 {[%emt 0:00:02]} Kf7 {[%emt 0:00:17]} 35. Bb8 {[%emt 0:00:21]} Ke8 {[%emt 0:00:04]} 36. Bxa7 {[%emt 0:00:11]} Kd7 {[%emt 0:00:07]} 37. Bb6 {[%emt 0:00:01]} Bg5 {[%emt 0:03:17]} 38. Ba5 {[%emt 0:00:48]} Bf4 {[%emt 0:00:27]} 39. f3 {[%emt 0:01:52]} Kc8 {[%emt 0:01:02]} 40. Kg2 {[%emt 0:00:20]} Kb7 {[%emt 0:00:05]} 41. h4 {[%emt 0:01:01]} Be3 {[%emt 0:00:19]} 42. Kh3 {[%emt 0:00:44]} Bg1 {[%emt 0:00:25]} 43. Be1 {[%emt 0:00:28]} Kb6 {[%emt 0:00:19]} 44. Kg4 {[%emt 0:00:13]} 1-0

[Event "2nd Cambridge Open 2024"]
[Site "Cambridge"]
[Date "2024.02.23"]
[Round "7.28"]
[White "Brett, Andrew R"]
[Black "Samarakoon, Vivash Ransara"]
[Result "1/2-1/2"]
[ECO "A52"]
[WhiteElo "2072"]
[BlackElo "1839"]
[Annotator "RC"]
[PlyCount "77"]
[EventDate "2024.02.18"]
[EventType "swiss"]
[EventCountry "ENG"]
[SourceTitle "playchess.com"]
[Source "ChessBase"]
[SourceQuality "1"]
[TimeControl "5400+30"]

1. d4 {[%emt 0:00:56]} Nf6 {[%emt 0:00:11]} 2. c4 {[%emt 0:00:06]} e5 {[%emt 0:00:11]} 3. dxe5 {[%emt 0:00:15]} Ng4 {[%emt 0:00:06]} 4. Nf3 {[%emt 0:01:30]} Bc5 {[%emt 0:00:28]} 5. e3 {[%emt 0:00:12]} Nc6 {[%emt 0:00:05]} 6. Nc3 {[%emt 0:00:18]} Ngxe5 {[%emt 0:01:41]} 7. Nxe5 {[%emt 0:06:01]} Nxe5 {[%emt 0:00:05]} 8. f4 {[%emt 0:00:03]} Nc6 {[%emt 0:03:36]} 9. Bd3 {[%emt 0:00:44]} d6 {[%emt 0:38:37]} 10. O-O {[%emt 0:01:52]} O-O {[%emt 0:05:27]} 11. Kh1 {[%emt 0:04:33]} Qh4 {[%emt 0:02:18]} 12. Nd5 {[%emt 0:04:48]} Bg4 {[%emt 0:08:06]} 13. Qc2 {[%emt 0:08:08]} Bb6 {[%emt 0:15:37]} 14. Bd2 {[%emt 0:02:40]} Rfe8 {[%emt 0:02:34]} 15. b4 {[%emt 0:07:14]} Rac8 {[%emt 0:07:41]} 16. a4 {[%emt 0:19:11]} a6 {[%emt 0:03:01]} 17. a5 {[%emt 0:04:46]} Ba7 {[%emt 0:00:25]} 18. Rac1 {[%emt 0:21:42]} Ne7 {[%emt 0:01:24]} 19. Nxe7+ {[%emt 0:06:01]} Rxe7 {[%emt 0:00:02]} 20. Be4 {[%emt 0:00:42]} c6 {[%emt 0:01:23]} 21. c5 {[%emt 0:01:53]} d5 {[%emt 0:04:58]} 22. Bd3 {[%emt 0:01:38]} Rce8 {[%emt 0:00:46]} 23. Be1 {[%emt 0:02:46]} Qh5 {[%emt 0:00:11]} 24. Bf2 {[%emt 0:00:21]} Bb8 {[%emt 0:00:30]} 25. Rce1 {[%emt 0:01:48]} g5 {[%emt 0:00:31]} 26. Qd2 {[%emt 0:01:14]} d4 {[%emt 0:01:17]} 27. Bg3 {[%emt 0:01:41]} Rxe3 {[%emt 0:01:19]} 28. Rxe3 {[%emt 0:00:37]} Rxe3 {[%emt 0:01:08]} 29. Kg1 {[%emt 0:00:10]} gxf4 {[%emt 0:00:44]} 30. Bxf4 {[%emt 0:00:06]} Bxf4 {[%emt 0:00:30]} 31. Rxf4 {[%emt 0:00:02]} Be6 {[%emt 0:00:16]} 32. Rxd4 {[%emt 0:00:13]} Qe5 {[%emt 0:00:15]} 33. Bf1 {[%emt 0:00:47]} Re1 {[%emt 0:00:57]} 34. Rd8+ {[%emt 0:00:44]} Kg7 {[%emt 0:00:01]} 35. Qd4 {[%emt 0:00:32]} Kf6 {[%emt 0:00:20]} 36. Qh4+ {[%emt 0:00:50]} Kg7 {[%emt 0:00:21]} 37. Qd4 {[%emt 0:00:13]} Kf6 {[%emt 0:00:12]} 38. Qh4+ {[%emt 0:00:13]} Kg7 {[%emt 0:00:44]} 39. Qd4 {[%emt 0:00:38]} 1/2-1/2

[Event "2nd Cambridge Open 2024"]
[Site "Cambridge"]
[Date "2024.02.23"]
[Round "7.29"]
[White "Nawalaniec, Adam"]
[Black "Bharat Kumar, Balahari"]
[Result "1-0"]
[ECO "B38"]
[WhiteElo "1876"]
[BlackElo "1995"]
[Annotator "RC"]
[PlyCount "93"]
[EventDate "2024.02.18"]
[EventType "swiss"]
[EventCountry "ENG"]
[SourceTitle "playchess.com"]
[Source "ChessBase"]
[SourceQuality "1"]
[TimeControl "5400+30"]

1. e4 {[%emt 0:00:07]} c5 {[%emt 0:00:06]} 2. Nf3 {[%emt 0:00:13]} d6 {[%emt 0:00:06]} 3. c4 {[%emt 0:00:14]} Nf6 {[%emt 0:03:11]} 4. Nc3 {[%emt 0:00:16]} Nc6 {[%emt 0:01:57]} 5. d4 {[%emt 0:00:42]} cxd4 {[%emt 0:00:14]} 6. Nxd4 {[%emt 0:00:11]} g6 {[%emt 0:00:52]} 7. f3 {[%emt 0:03:29]} Bg7 {[%emt 0:02:12]} 8. Be3 {[%emt 0:02:49]} O-O {[%emt 0:04:04]} 9. Be2 {[%emt 0:06:04]} Bd7 {[%emt 0:10:07]} 10. Qd2 {[%emt 0:03:22]} h5 {[%emt 0:07:26]} 11. h3 {[%emt 0:05:32]} Rc8 {[%emt 0:08:21]} 12. g4 {[%emt 0:09:24]} a6 {[%emt 0:15:33]} 13. Nc2 {[%emt 0:24:06]} Na5 {[%emt 0:15:33]} 14. Na3 {[%emt 0:04:29]} Be6 {[%emt 0:08:13]} 15. Na4 {[%emt 0:06:04]} Nxc4 {[%emt 0:10:59]} 16. Bxc4 {[%emt 0:00:28]} Rxc4 {[%emt 0:00:35]} 17. Nxc4 {[%emt 0:00:11]} Bxc4 {[%emt 0:00:07]} 18. Nb6 {[%emt 0:03:31]} Be6 {[%emt 0:01:08]} 19. Rc1 {[%emt 0:07:23]} h4 {[%emt 0:08:12]} 20. Ke2 {[%emt 0:03:45]} d5 {[%emt 0:00:43]} 21. e5 {[%emt 0:09:43]} d4 {[%emt 0:00:07]} 22. Bxd4 {[%emt 0:02:25]} Nd5 {[%emt 0:00:16]} 23. Nc4 {[%emt 0:01:37]} b5 {[%emt 0:00:52]} 24. Na5 {[%emt 0:00:44]} Qd7 {[%emt 0:01:00]} 25. Nb3 {[%emt 0:00:31]} Qd8 {[%emt 0:00:34]} 26. Rhd1 {[%emt 0:01:18]} f6 {[%emt 0:00:27]} 27. Nc5 {[%emt 0:00:17]} Bc8 {[%emt 0:00:20]} 28. Bf2 {[%emt 0:02:12]} e6 {[%emt 0:00:36]} 29. Bxh4 {[%emt 0:00:40]} g5 {[%emt 0:00:25]} 30. Bg3 {[%emt 0:01:14]} fxe5 {[%emt 0:00:42]} 31. Ne4 {[%emt 0:00:20]} Qe7 {[%emt 0:00:28]} 32. Qxg5 {[%emt 0:00:37]} Qf7 {[%emt 0:00:32]} 33. Rd3 {[%emt 0:00:51]} Nf4+ {[%emt 0:00:26]} 34. Bxf4 {[%emt 0:00:08]} Qxf4 {[%emt 0:00:33]} 35. Qxf4 {[%emt 0:00:36]} exf4 {[%emt 0:00:04]} 36. Nd6 {[%emt 0:00:43]} Bd7 {[%emt 0:00:14]} 37. Rc7 {[%emt 0:00:09]} Be8 {[%emt 0:00:18]} 38. Nxe8 {[%emt 0:00:22]} Rxe8 {[%emt 0:00:01]} 39. Rcd7 {[%emt 0:00:52]} Bxb2 {[%emt 0:00:38]} 40. Rd8 {[%emt 0:00:06]} Kf8 {[%emt 0:00:40]} 41. Rxe8+ {[%emt 0:00:07]} Kxe8 {[%emt 0:00:01]} 42. Rd6 {[%emt 0:00:10]} a5 {[%emt 0:00:42]} 43. Rxe6+ {[%emt 0:00:06]} Kd7 {[%emt 0:00:18]} 44. Rb6 {[%emt 0:00:28]} b4 {[%emt 0:00:08]} 45. g5 {[%emt 0:00:13]} Bc3 {[%emt 0:00:06]} 46. g6 {[%emt 0:00:08]} a4 {[%emt 0:00:05]} 47. g7 {[%emt 0:00:13]} 1-0

[Event "2nd Cambridge Open 2024"]
[Site "Cambridge"]
[Date "2024.02.23"]
[Round "7.30"]
[White "Blauhut, Holger"]
[Black "Skettos, Nicolas"]
[Result "1/2-1/2"]
[ECO "C01"]
[WhiteElo "2016"]
[BlackElo "1880"]
[Annotator "NA RC"]
[PlyCount "54"]
[EventDate "2024.02.18"]
[EventType "swiss"]
[EventCountry "ENG"]
[SourceTitle "playchess.com"]
[Source "ChessBase"]
[SourceQuality "1"]
[TimeControl "5400+30"]

1. e4 {[%emt 0:00:05]} e6 {[%emt 0:00:09]} 2. d4 {[%emt 0:00:10]} d5 {[%emt 0:00:03]} 3. Bd3 {[%emt 0:00:30]} dxe4 {[%emt 0:00:09]} 4. Bxe4 {[%emt 0:00:05]} Nf6 {[%emt 0:00:04]} 5. Bf3 {[%emt 0:00:09]} c5 {[%emt 0:00:04]} 6. Ne2 {[%emt 0:00:18]} Nc6 {[%emt 0:00:10]} 7. Be3 {[%emt 0:00:13]} cxd4 {[%emt 0:00:14]} 8. Nxd4 {[%emt 0:00:08]} Ne5 {[%emt 0:00:04]} 9. Nc3 {[%emt 0:00:55]} a6 {[%emt 0:00:03]} 10. Qe2 {[%emt 0:00:12]} Nxf3+ {[%emt 0:01:29]} 11. Nxf3 {[%emt 0:01:18]} Bb4 {[%emt 0:10:38]} 12. Bd4 {[%emt 0:02:55]} Bxc3+ {[%emt 0:01:29]} 13. Bxc3 {[%emt 0:00:16]} O-O {[%emt 0:00:33]} 14. O-O {[%emt 0:02:32]} b5 {[%emt 0:07:53]} 15. Rfd1 {[%emt 0:11:07]} Qc7 {[%emt 0:11:30]} 16. Bxf6 {[%emt 0:10:06]} gxf6 {[%emt 0:00:02]} 17. Qe4 {[%emt 0:00:07]} Bb7 {[%emt 0:00:28]} 18. Qg4+ {[%emt 0:04:45]} Kh8 {[%emt 0:00:04]} 19. Qh4 {[%emt 0:00:20]} Qxc2 {[%emt 0:06:35]} 20. Qxf6+ {[%emt 0:00:41]} Kg8 {[%emt 0:00:01]} 21. Ne5 {[%emt 0:12:26]} Qf5 {[%emt 0:03:34]} 22. Qxf5 {[%emt 0:01:48]} exf5 {[%emt 0:00:01]} 23. Rd7 {[%emt 0:04:24]} f6 {[%emt 0:11:25]} 24. Rxb7 {[%emt 0:07:04]} fxe5 {[%emt 0:00:01]} 25. Re1 {[%emt 0:00:08]} Rfe8 {[%emt 0:05:40]} 26. f3 {[%emt 0:02:04]} Rac8 {[%emt 0:01:41]} 27. Re2 {[%emt 0:00:23]} e4 {[%emt 0:02:07]} 1/2-1/2

[Event "2nd Cambridge Open 2024"]
[Site "Cambridge"]
[Date "2024.02.23"]
[Round "7.31"]
[White "Jefremov, Aivar"]
[Black "Mocic, Ivano"]
[Result "1/2-1/2"]
[ECO "D02"]
[WhiteElo "1656"]
[BlackElo "2008"]
[Annotator "NA RC"]
[PlyCount "80"]
[EventDate "2024.02.18"]
[EventType "swiss"]
[EventCountry "ENG"]
[SourceTitle "playchess.com"]
[Source "ChessBase"]
[SourceQuality "1"]
[TimeControl "5400+30"]

1. d4 {[%emt 0:01:31]} Nf6 {[%emt 0:00:07]} 2. Nf3 {[%emt 0:00:20]} e6 {[%emt 0:02:15]} 3. Bf4 {[%emt 0:01:55]} d5 {[%emt 0:00:42]} 4. e3 {[%emt 0:00:20]} c5 {[%emt 0:04:06]} 5. c3 {[%emt 0:00:22]} Qb6 {[%emt 0:06:58]} 6. Qb3 {[%emt 0:05:24]} c4 {[%emt 0:02:06]} 7. Qc2 {[%emt 0:00:36]} Bd6 {[%emt 1:17:46]} 8. Bg3 {[%emt 0:03:48]} Nbd7 {[%emt 0:00:00]} 9. Nbd2 {[%emt 0:01:14]} O-O {[%emt 0:00:00]} 10. Be2 {[%emt 0:01:07]} Qc7 {[%emt 0:00:00]} 11. e4 {[%emt 0:12:39]} dxe4 {[%emt 0:00:00]} 12. Bxd6 {[%emt 0:02:00]} Qxd6 {[%emt 0:00:00]} 13. Nxe4 {[%emt 0:00:07]} Nxe4 {[%emt 0:00:00]} 14. Qxe4 {[%emt 0:00:04]} Nf6 {[%emt 0:00:00]} 15. Qe5 {[%emt 0:01:50]} Qb6 {[%emt 0:00:00]} 16. Rb1 {[%emt 0:00:11]} Qc6 {[%emt 0:00:00]} 17. O-O {[%emt 0:01:26]} b5 {[%emt 0:00:00]} 18. Nd2 {[%emt 0:02:50]} Bb7 {[%emt 0:00:00]} 19. Bf3 {[%emt 0:00:17]} Qd7 {[%emt 0:00:00]} 20. Bxb7 {[%emt 0:09:16]} Qxb7 {[%emt 0:00:00]} 21. f3 {[%emt 0:00:05]} Qd5 {[%emt 0:00:00]} 22. Rfe1 {[%emt 0:02:51]} Rfe8 {[%emt 0:00:00]} 23. Ne4 {[%emt 0:03:57]} Qxe5 {[%emt 0:00:00]} 24. dxe5 {[%emt 0:03:14]} Nxe4 {[%emt 0:00:00]} 25. Rxe4 {[%emt 0:00:06]} Red8 {[%emt 0:00:00]} 26. Rd4 {[%emt 0:00:27]} Rxd4 {[%emt 0:00:00]} 27. cxd4 {[%emt 0:00:05]} Kf8 {[%emt 0:00:00]} 28. Kf2 {[%emt 0:01:07]} Ke7 {[%emt 0:00:00]} 29. b3 {[%emt 0:01:50]} c3 {[%emt 0:00:00]} 30. b4 {[%emt 0:00:35]} a5 {[%emt 0:00:00]} 31. bxa5 {[%emt 0:07:33]} Rxa5 {[%emt 0:00:00]} 32. a3 {[%emt 0:00:07]} c2 {[%emt 0:05:45]} 33. Rc1 {[%emt 0:00:05]} Rxa3 {[%emt 0:00:07]} 34. Rxc2 {[%emt 0:00:05]} b4 {[%emt 0:01:09]} 35. Rb2 {[%emt 0:01:22]} b3 {[%emt 0:01:49]} 36. Ke3 {[%emt 0:00:04]} Ra2 {[%emt 0:02:08]} 37. Rxb3 {[%emt 0:00:10]} g5 {[%emt 0:01:49]} 38. g4 {[%emt 0:00:38]} Rxh2 {[%emt 0:00:28]} 39. Rb7+ {[%emt 0:02:12]} Ke8 {[%emt 0:00:06]} 40. Rb8+ {[%emt 0:00:10]} Ke7 {[%emt 0:00:09]} 1/2-1/2

[Event "2nd Cambridge Open 2024"]
[Site "Cambridge"]
[Date "2024.02.23"]
[Round "7.32"]
[White "Hutchinson, Paul A"]
[Black "Evans, Ruben"]
[Result "1-0"]
[ECO "D00"]
[WhiteElo "2013"]
[BlackElo "1647"]
[Annotator "NA RC"]
[PlyCount "83"]
[EventDate "2024.02.18"]
[EventType "swiss"]
[EventCountry "ENG"]
[SourceTitle "playchess.com"]
[Source "ChessBase"]
[SourceQuality "1"]
[TimeControl "5400+30"]

1. d4 {[%emt 0:00:02]} Nf6 {[%emt 0:00:05]} 2. Nc3 {[%emt 0:00:17]} d5 {[%emt 0:02:25]} 3. Bf4 {[%emt 0:00:08]} c5 {[%emt 0:02:14]} 4. e3 {[%emt 0:02:15]} a6 {[%emt 0:01:20]} 5. Nf3 {[%emt 0:00:30]} Bg4 {[%emt 0:02:31]} 6. Be2 {[%emt 0:00:59]} Nc6 {[%emt 0:02:05]} 7. h3 {[%emt 0:11:39]} Bxf3 {[%emt 0:05:56]} 8. Bxf3 {[%emt 0:05:57]} e6 {[%emt 0:06:02]} 9. O-O {[%emt 0:02:38]} cxd4 {[%emt 0:10:53]} 10. exd4 {[%emt 0:01:13]} Bd6 {[%emt 0:02:25]} 11. Qd2 {[%emt 0:06:52]} O-O {[%emt 0:09:59]} 12. Rfe1 {[%emt 0:03:15]} Rc8 {[%emt 0:10:42]} 13. Rad1 {[%emt 0:15:15]} Qc7 {[%emt 0:10:41]} 14. Bxd6 {[%emt 0:06:03]} Qxd6 {[%emt 0:00:16]} 15. Ne2 {[%emt 0:01:06]} b5 {[%emt 0:06:48]} 16. a3 {[%emt 0:06:02]} a5 {[%emt 0:04:32]} 17. Ra1 {[%emt 0:03:13]} Rb8 {[%emt 0:08:25]} 18. c3 {[%emt 0:02:55]} a4 {[%emt 0:03:00]} 19. Rad1 {[%emt 0:05:51]} Na5 {[%emt 0:00:44]} 20. Qc1 {[%emt 0:00:18]} Nd7 {[%emt 0:04:20]} 21. Nf4 {[%emt 0:01:14]} Nc4 {[%emt 0:02:25]} 22. Re2 {[%emt 0:01:14]} Rbc8 {[%emt 0:01:25]} 23. Rde1 {[%emt 0:02:29]} Na5 {[%emt 0:02:02]} 24. Nd3 {[%emt 0:03:21]} Nb3 {[%emt 0:00:10]} 25. Qg5 {[%emt 0:00:21]} h6 {[%emt 0:00:23]} 26. Qh4 {[%emt 0:00:29]} Rce8 {[%emt 0:00:45]} 27. g4 {[%emt 0:00:49]} Nb6 {[%emt 0:01:27]} 28. Bg2 {[%emt 0:02:02]} Qd8 {[%emt 0:00:00]} 29. Qg3 {[%emt 0:00:16]} Qb8 {[%emt 0:00:04]} 30. f4 {[%emt 0:00:17]} Nc4 {[%emt 0:00:38]} 31. g5 {[%emt 0:00:23]} hxg5 {[%emt 0:00:16]} 32. Qxg5 {[%emt 0:00:08]} Nb6 {[%emt 0:00:44]} 33. Qg3 {[%emt 0:01:30]} Na5 {[%emt 0:00:25]} 34. Ne5 {[%emt 0:00:19]} Nac4 {[%emt 0:00:38]} 35. Ng4 {[%emt 0:00:14]} Qd8 {[%emt 0:00:28]} 36. f5 {[%emt 0:00:44]} Nd6 {[%emt 0:00:39]} 37. f6 {[%emt 0:03:20]} g6 {[%emt 0:00:27]} 38. Nh6+ {[%emt 0:01:35]} Kh7 {[%emt 0:00:16]} 39. Qh4 {[%emt 0:00:13]} g5 {[%emt 0:00:49]} 40. Qxg5 {[%emt 0:01:43]} Rg8 {[%emt 0:00:08]} 41. Nxg8 {[%emt 0:00:15]} Rxg8 {[%emt 0:00:02]} 42. Qh5# {[%emt 0:00:41]} 1-0